fUSD/lending_fUSD_20260605
["ID","MTS","AMOUNT","RATE_DAILY","PERIOD"]
[424177640,1780629055000,-500.0,0.00027562,2]
[424177626,1780629055000,-406.53847781,0.00026,2]
[424177598,1780629055000,-166.66,0.00023511,30]
[424177627,1780629055000,-150.0,0.00026,14]
[424177594,1780629055000,-434.0,0.00023,2]
[424177597,1780629055000,-27119.94,0.00023233,2]
[424177603,1780629055000,-436.0,0.00024,2]
[424177613,1780629055000,-440.0,0.00025,2]
[424177602,1780629055000,-319.0,0.00024,2]
[424177606,1780629055000,-434.0,0.00024,2]
[424177605,1780629055000,-151.0,0.00024,2]
[424177607,1780629055000,-151.99,0.00024658,2]
[424177610,1780629055000,-306.0,0.00025,2]
[424177609,1780629055000,-500.0,0.00024764,2]
[424177611,1780629055000,-343.0,0.00025,2]
[424177604,1780629055000,-687.0,0.00024,2]
[424177612,1780629055000,-335.0,0.00025,2]
[424177620,1780629055000,-151.99,0.00025388,30]
[424177632,1780629055000,-1000.0,0.00026893,2]
[424177608,1780629055000,-153.28,0.00024658,2]
[424177624,1780629055000,-151.99,0.00025753,2]
[424177623,1780629055000,-2008.72724108,0.00025541,2]
[424177621,1780629055000,-153.28,0.00025388,30]
[424177617,1780629055000,-151.99,0.00025023,7]
[424177622,1780629055000,-200.0,0.00025445,2]
[424177616,1780629055000,-440.0,0.00025,2]
[424177618,1780629055000,-153.28,0.00025023,7]
[424177614,1780629055000,-696.74612663,0.00025,2]
[424177615,1780629055000,-165.25387337,0.00025,2]
[424177619,1780629055000,-207.56864141,0.00025212,2]
[424177693,1780629056000,-163.5,0.00029098,7]
[424177696,1780629056000,-347.71,0.00029132,30]
[424177694,1780629056000,-577.95,0.00029132,30]
[424177697,1780629056000,-177.32,0.00029132,30]
[424177691,1780629056000,-163.5,0.00029031,2]
[424177687,1780629056000,-471.39,0.00028964,2]
[424177699,1780629056000,-471.39,0.00029132,30]
[424177692,1780629056000,-162.12,0.00029098,7]
[424177690,1780629056000,-162.12,0.00029031,2]
[424177689,1780629056000,-500.0,0.00029,2]
[424177695,1780629056000,-2334.0,0.00029132,5]
[424177698,1780629056000,-199.56,0.00029132,30]
[424177701,1780629056000,-352.69201331,0.00029161,2]
[424177715,1780629056000,-151.0,0.0002941,30]
[424177702,1780629056000,-213.90160724,0.00029161,2]
[424177703,1780629056000,-176.94533883,0.00029161,2]
[424177700,1780629056000,-304.55016862,0.00029146,2]
[424177704,1780629056000,-162.12,0.00029165,30]
[424177708,1780629056000,-9725.18,0.00029265,2]
[424177705,1780629056000,-163.5,0.00029165,30]
[424177710,1780629056000,-347.71,0.00029299,7]
[424177707,1780629056000,-163.53,0.00029232,2]
[424177709,1780629056000,-577.95,0.00029299,7]
[424177706,1780629056000,-162.15,0.00029232,2]
[424177712,1780629056000,-199.56,0.00029299,7]
[424177723,1780629056000,-436.0,0.00029418,30]
[424177688,1780629056000,-500.0,0.00028986,2]
[424177711,1780629056000,-177.32,0.00029299,7]
[424177684,1780629056000,-177.32,0.00028964,2]
[424177661,1780629056000,-177.32,0.0002863,30]
[424177681,1780629056000,-577.95,0.00028964,2]
[424177660,1780629056000,-347.71,0.0002863,30]
[424177657,1780629056000,-166.66,0.00028458,2]
[424177714,1780629056000,-166.66,0.00029397,2]
[424177659,1780629056000,-162.12,0.0002863,2]
[424177656,1780629056000,-150.0,0.00028263,2]
[424177658,1780629056000,-577.95,0.0002863,30]
[424177666,1780629056000,-163.5,0.00028696,7]
[424177672,1780629056000,-199.56,0.00028797,7]
[424177662,1780629056000,-163.5,0.0002863,2]
[424177665,1780629056000,-162.12,0.00028696,7]
[424177664,1780629056000,-471.39,0.0002863,30]
[424177673,1780629056000,-471.39,0.00028797,7]
[424177667,1780629056000,-162.12,0.00028763,30]
[424177682,1780629056000,-162.12,0.00028964,30]
[424177668,1780629056000,-163.5,0.00028763,30]
[424177663,1780629056000,-199.56,0.0002863,30]
[424177671,1780629056000,-177.32,0.00028797,7]
[424177669,1780629056000,-577.95,0.00028797,7]
[424177675,1780629056000,-163.5,0.0002883,2]
[424177674,1780629056000,-162.12,0.0002883,2]
[424177678,1780629056000,-2890.99655119,0.000289,2]
[424177685,1780629056000,-163.5,0.00028964,30]
[424177686,1780629056000,-199.56,0.00028964,2]
[424177676,1780629056000,-162.12,0.00028897,7]
[424177679,1780629056000,-2890.99655118,0.000289,2]
[424177677,1780629056000,-163.5,0.00028897,7]
[424177680,1780629056000,-2890.99655118,0.000289,2]
[424177683,1780629056000,-347.71,0.00028964,2]
[424177670,1780629056000,-347.71,0.00028797,7]
[424177719,1780629056000,-153.0,0.0002941,30]
[424177775,1780629056000,-530.8360165,0.00030617,2]
[424177720,1780629056000,-300.0,0.00029418,30]
[424177760,1780629056000,-335.0,0.00030418,30]
[424177754,1780629056000,-687.0,0.0003041,30]
[424177752,1780629056000,-166.66,0.00030336,2]
[424177757,1780629056000,-153.0,0.0003041,30]
[424177761,1780629056000,-319.0,0.00030418,30]
[424177756,1780629056000,-434.0,0.0003041,30]
[424177750,1780629056000,-240.12,0.000302,2]
[424177753,1780629056000,-151.0,0.0003041,30]
[424177755,1780629056000,-151.0,0.0003041,30]
[424177759,1780629056000,-300.0,0.00030418,30]
[424177758,1780629056000,-182.69,0.00030411,120]
[424177763,1780629056000,-609.10033724,0.00030601,2]
[424177770,1780629056000,-705.38402661,0.00030617,2]
[424177751,1780629056000,-151.0,0.00030239,2]
[424177773,1780629056000,-641.70482172,0.00030617,2]
[424177768,1780629056000,-204.33195596,0.00030602,2]
[424177772,1780629056000,-183.33792146,0.00030617,2]
[424177766,1780629056000,-170.8165451,0.00030602,2]
[424177769,1780629056000,-205.09826766,0.00030617,2]
[424177762,1780629056000,-436.0,0.00030418,30]
[424177771,1780629056000,-168.53995517,0.00030617,2]
[424177767,1780629056000,-215.66804404,0.00030602,2]
[424177764,1780629056000,-316.52264123,0.00030601,2]
[424177774,1780629056000,-431.43151561,0.00030617,2]
[424177776,1780629056000,-456.48864288,0.00030617,2]
[424177777,1780629056000,-4415.01465548,0.00030619,2]
[424177778,1780629056000,-525.0,0.00030663,2]
[424177779,1780629056000,-1227.0,0.00030663,2]
[424177765,1780629056000,-215.3527932,0.00030602,2]
[424177741,1780629056000,-578.01,0.00030136,30]
[424177713,1780629056000,-471.39,0.00029299,7]
[424177747,1780629056000,-160.0,0.0003014,30]
[424177717,1780629056000,-151.0,0.0002941,30]
[424177722,1780629056000,-319.0,0.00029418,30]
[424177718,1780629056000,-434.0,0.0002941,30]
[424177721,1780629056000,-335.0,0.00029418,30]
[424177716,1780629056000,-687.0,0.0002941,30]
[424177725,1780629056000,-150.0,0.00029534,2]
[424177735,1780629056000,-600.0,0.0003,90]
[424177742,1780629056000,-239.81,0.00030137,2]
[424177734,1780629056000,-151.10510255,0.0003,2]
[424177732,1780629056000,-150.0,0.0003,2]
[424177736,1780629056000,-456.82525293,0.00030019,2]
[424177726,1780629056000,-577.95,0.00029634,30]
[424177730,1780629056000,-153.92415977,0.00029863,2]
[424177728,1780629056000,-577.95,0.00029802,7]
[424177727,1780629056000,-207.56864141,0.0002972,2]
[424177729,1780629056000,-257.75900288,0.00029863,2]
[424177724,1780629056000,-577.95,0.00029467,2]
[424177743,1780629056000,-500.0,0.00030137,3]
[424177745,1780629056000,-283.57715283,0.00030137,30]
[424177744,1780629056000,-152.6,0.00030137,2]
[424177737,1780629056000,-529.03801996,0.00030035,2]
[424177739,1780629056000,-228.24432144,0.00030035,2]
[424177746,1780629056000,-152.6,0.00030137,2]
[424177748,1780629056000,-150.0,0.00030145,2]
[424177749,1780629056000,-151.0,0.00030145,2]
[424177738,1780629056000,-427.80321448,0.00030035,2]
[424177731,1780629056000,-577.95,0.00029969,2]
[424177733,1780629056000,-150.0,0.0003,2]
[424177740,1780629056000,-353.89067767,0.00030035,2]
[424177820,1780629057000,-150.0,0.00032562,2]
[424177821,1780629057000,-500.0,0.00032876,7]
[424177823,1780629057000,-500.0,0.00032876,7]
[424177816,1780629057000,-335.0,0.00032418,30]
[424177818,1780629057000,-436.0,0.00032418,30]
[424177813,1780629057000,-151.0,0.0003241,30]
[424177824,1780629057000,-500.0,0.00032876,7]
[424177825,1780629057000,-500.0,0.00032876,7]
[424177817,1780629057000,-319.0,0.00032418,30]
[424177822,1780629057000,-500.0,0.00032876,7]
[424177815,1780629057000,-300.0,0.00032418,30]
[424177819,1780629057000,-600.0,0.000325,120]
[424177814,1780629057000,-434.0,0.0003241,30]
[424177848,1780629057000,-690.05652292,0.00033781,7]
[424177828,1780629057000,-164.74,0.000329,30]
[424177832,1780629057000,-151.0,0.0003341,30]
[424177827,1780629057000,-500.0,0.00032876,7]
[424177830,1780629057000,-166.66,0.00033155,2]
[424177831,1780629057000,-240.28,0.000332,9]
[424177838,1780629057000,-319.0,0.00033418,30]
[424177829,1780629057000,-160.0,0.00033,7]
[424177837,1780629057000,-335.0,0.00033418,30]
[424177833,1780629057000,-687.0,0.0003341,30]
[424177835,1780629057000,-434.0,0.0003341,30]
[424177834,1780629057000,-151.0,0.0003341,30]
[424177836,1780629057000,-300.0,0.00033418,30]
[424177839,1780629057000,-436.0,0.00033418,30]
[424177811,1780629057000,-151.0,0.0003241,30]
[424177826,1780629057000,-500.0,0.00032876,7]
[424177809,1780629057000,-151.0,0.0003221,5]
[424177793,1780629057000,-150.0,0.00031263,2]
[424177806,1780629057000,-259.72,0.00032192,2]
[424177846,1780629057000,-150.0,0.000337,17]
[424177786,1780629057000,-160.0,0.000312,4]
[424177787,1780629057000,-336.476962,0.000312,4]
[424177780,1780629057000,-6072.0,0.00030663,2]
[424177783,1780629057000,-150.0,0.00031011,2]
[424177781,1780629057000,-419.0,0.00030663,2]
[424177782,1780629057000,-686.0,0.00031,90]
[424177785,1780629057000,-160.0,0.000312,4]
[424177784,1780629057000,-160.0,0.000312,4]
[424177790,1780629057000,-150.0,0.00031263,2]
[424177791,1780629057000,-150.0,0.00031263,2]
[424177789,1780629057000,-150.0,0.00031263,2]
[424177788,1780629057000,-150.0,0.00031263,2]
[424177810,1780629057000,-166.66,0.00032215,2]
[424177792,1780629057000,-150.0,0.00031263,2]
[424177800,1780629057000,-156.0,0.0003141,30]
[424177796,1780629057000,-151.0,0.0003141,30]
[424177797,1780629057000,-687.0,0.0003141,30]
[424177794,1780629057000,-150.0,0.00031263,2]
[424177799,1780629057000,-434.0,0.0003141,30]
[424177812,1780629057000,-687.0,0.0003241,30]
[424177802,1780629057000,-335.0,0.00031418,30]
[424177807,1780629057000,-240.2,0.000322,8]
[424177804,1780629057000,-436.0,0.00031418,30]
[424177805,1780629057000,-201.65338056,0.00032135,2]
[424177801,1780629057000,-300.0,0.00031418,30]
[424177803,1780629057000,-319.0,0.00031418,30]
[424177808,1780629057000,-160.0,0.000322,7]
[424177798,1780629057000,-151.0,0.0003141,30]
[424177843,1780629057000,-6072.0,0.00033663,2]
[424177795,1780629057000,-166.66,0.00031276,2]
[424177840,1780629057000,-973.59,0.000336,120]
[424177878,1780629057000,-300.0,0.00034952,2]
[424177880,1780629057000,-300.0,0.00034952,2]
[424177891,1780629057000,-300.0,0.00034952,2]
[424177890,1780629057000,-300.0,0.00034952,2]
[424177884,1780629057000,-302.57479324,0.00034952,2]
[424177882,1780629057000,-535.40148659,0.00034952,2]
[424177879,1780629057000,-3206.51250246,0.00034952,2]
[424177881,1780629057000,-1069.74260505,0.00034952,2]
[424177885,1780629057000,-300.0,0.00034952,2]
[424177886,1780629057000,-301.35684721,0.00034952,2]
[424177887,1780629057000,-300.0,0.00034952,2]
[424177883,1780629057000,-300.0,0.00034952,2]
[424177888,1780629057000,-300.0,0.00034952,2]
[424177889,1780629057000,-300.0,0.00034952,2]
[424177906,1780629057000,-300.0,0.00034952,2]
[424177892,1780629057000,-300.0,0.00034952,2]
[424177894,1780629057000,-300.0,0.00034952,2]
[424177899,1780629057000,-300.0,0.00034952,2]
[424177898,1780629057000,-1801.88721781,0.00034952,2]
[424177896,1780629057000,-866.62523856,0.00034952,2]
[424177902,1780629057000,-1637.97013637,0.00034952,2]
[424177895,1780629057000,-300.0,0.00034952,2]
[424177900,1780629057000,-300.0,0.00034952,2]
[424177901,1780629057000,-300.0,0.00034952,2]
[424177897,1780629057000,-951.46597211,0.00034952,2]
[424177903,1780629057000,-301.75905814,0.00034952,2]
[424177904,1780629057000,-300.0,0.00034952,2]
[424177905,1780629057000,-300.0,0.00034952,2]
[424177847,1780629057000,-500.0,0.00033709,120]
[424177871,1780629057000,-300.0,0.00034952,2]
[424177874,1780629057000,-300.0,0.00034952,2]
[424177893,1780629057000,-1080.21357232,0.00034952,2]
[424177866,1780629057000,-319.0,0.00034418,30]
[424177877,1780629057000,-301.39624422,0.00034952,2]
[424177850,1780629057000,-151.0,0.00034182,7]
[424177842,1780629057000,-1227.0,0.00033663,2]
[424177841,1780629057000,-525.0,0.00033663,2]
[424177849,1780629057000,-202.68208804,0.00034,7]
[424177851,1780629057000,-150.0,0.0003419,2]
[424177844,1780629057000,-419.0,0.00033663,2]
[424177852,1780629057000,-207.56864141,0.00034228,2]
[424177854,1780629057000,-150.0,0.00034263,2]
[424177853,1780629057000,-800.0,0.00034247,120]
[424177864,1780629057000,-300.0,0.00034418,30]
[424177859,1780629057000,-4415.01465548,0.00034391,2]
[424177855,1780629057000,-150.0,0.00034263,2]
[424177856,1780629057000,-150.0,0.00034263,2]
[424177845,1780629057000,-212.350964,0.000337,10]
[424177858,1780629057000,-150.0,0.00034263,2]
[424177860,1780629057000,-151.0,0.0003441,30]
[424177872,1780629057000,-300.0,0.00034952,2]
[424177875,1780629057000,-606.01943079,0.00034952,2]
[424177865,1780629057000,-335.0,0.00034418,30]
[424177869,1780629057000,-1500.0,0.00034795,2]
[424177868,1780629057000,-611.0,0.0003454,30]
[424177873,1780629057000,-301.83893348,0.00034952,2]
[424177870,1780629057000,-301.0,0.00034939,3]
[424177857,1780629057000,-150.0,0.00034263,2]
[424177861,1780629057000,-687.0,0.0003441,30]
[424177867,1780629057000,-436.0,0.00034418,30]
[424177863,1780629057000,-434.0,0.0003441,30]
[424177876,1780629057000,-301.0077852,0.00034952,2]
[424177862,1780629057000,-151.0,0.0003441,30]
[424177936,1780629058000,-606.01943079,0.00034952,2]
[424177933,1780629058000,-300.0,0.00034952,2]
[424177935,1780629058000,-300.0,0.00034952,2]
[424177941,1780629058000,-1069.74260505,0.00034952,2]
[424177937,1780629058000,-300.0,0.00034952,2]
[424177943,1780629058000,-300.0,0.00034952,2]
[424177944,1780629058000,-302.57479324,0.00034952,2]
[424177942,1780629058000,-535.40148659,0.00034952,2]
[424177947,1780629058000,-301.35684721,0.00034952,2]
[424177948,1780629058000,-300.0,0.00034952,2]
[424177938,1780629058000,-300.0,0.00034952,2]
[424177964,1780629058000,-1801.88721781,0.00034952,2]
[424177949,1780629058000,-300.0,0.00034952,2]
[424177945,1780629058000,-300.0,0.00034952,2]
[424177946,1780629058000,-300.0,0.00034952,2]
[424177950,1780629058000,-300.0,0.00034952,2]
[424177952,1780629058000,-300.0,0.00034952,2]
[424177963,1780629058000,-951.46597211,0.00034952,2]
[424177953,1780629058000,-300.0,0.00034952,2]
[424177958,1780629058000,-300.0,0.00034952,2]
[424177956,1780629058000,-300.0,0.00034952,2]
[424177932,1780629058000,-300.0,0.00034952,2]
[424177955,1780629058000,-1080.21357232,0.00034952,2]
[424177951,1780629058000,-300.0,0.00034952,2]
[424177934,1780629058000,-300.0,0.00034952,2]
[424177917,1780629058000,-300.64704917,0.00034952,2]
[424177930,1780629058000,-300.0,0.00034952,2]
[424177957,1780629058000,-344.84564358,0.00034952,2]
[424177913,1780629058000,-300.0,0.00034952,2]
[424177914,1780629058000,-300.0,0.00034952,2]
[424177916,1780629058000,-300.0,0.00034952,2]
[424177915,1780629058000,-310.66121846,0.00034952,2]
[424177912,1780629058000,-300.0,0.00034952,2]
[424177907,1780629058000,-300.0,0.00034952,2]
[424177908,1780629058000,-512.60852236,0.00034952,2]
[424177909,1780629058000,-300.0,0.00034952,2]
[424177911,1780629058000,-300.0,0.00034952,2]
[424177910,1780629058000,-626.69317142,0.00034952,2]
[424177921,1780629058000,-300.0,0.00034952,2]
[424177918,1780629058000,-300.0,0.00034952,2]
[424177919,1780629058000,-300.0,0.00034952,2]
[424177920,1780629058000,-1097.74908549,0.00034952,2]
[424177924,1780629058000,-300.0,0.00034952,2]
[424177922,1780629058000,-300.96590551,0.00034952,2]
[424177927,1780629058000,-300.0,0.00034952,2]
[424177923,1780629058000,-300.0,0.00034952,2]
[424177926,1780629058000,-300.0,0.00034952,2]
[424177925,1780629058000,-300.0,0.00034952,2]
[424177929,1780629058000,-300.0,0.00034952,2]
[424177940,1780629058000,-300.0,0.00034952,2]
[424177939,1780629058000,-3206.51250246,0.00034952,2]
[424177928,1780629058000,-300.0,0.00034952,2]
[424177931,1780629058000,-493.96494702,0.00034952,2]
[424177954,1780629058000,-301.65038824,0.00034952,2]
[424177967,1780629058000,-300.0,0.00034952,2]
[424177960,1780629058000,-300.0,0.00034952,2]
[424177993,1780629058000,-500.0,0.00034967,30]
[424177992,1780629058000,-500.0,0.00034967,120]
[424177991,1780629058000,-500.0,0.00034967,120]
[424177995,1780629058000,-530.19,0.00034967,120]
[424177994,1780629058000,-500.0,0.00034967,120]
[424177997,1780629058000,-200.0,0.00035,120]
[424177996,1780629058000,-500.0,0.00034967,120]
[424178000,1780629058000,-151.0,0.00035101,2]
[424178003,1780629058000,-687.0,0.0003541,30]
[424178013,1780629058000,-160.16,0.0003551,69]
[424178010,1780629058000,-160.0,0.000355,14]
[424177987,1780629058000,-301.67340186,0.00034952,2]
[424178011,1780629058000,-160.0,0.000355,14]
[424178002,1780629058000,-163.0,0.0003541,30]
[424178007,1780629058000,-335.0,0.00035418,30]
[424178012,1780629058000,-200.0,0.000355,10]
[424178008,1780629058000,-319.0,0.00035418,30]
[424178005,1780629058000,-434.0,0.0003541,30]
[424178004,1780629058000,-151.0,0.0003541,30]
[424178009,1780629058000,-436.0,0.00035418,30]
[424178006,1780629058000,-300.0,0.00035418,30]
[424177959,1780629058000,-528.25355298,0.00034952,2]
[424178016,1780629058000,-2000.0,0.00035616,30]
[424178014,1780629058000,-1800.54510551,0.00035589,120]
[424178001,1780629058000,-500.0,0.00035281,7]
[424177990,1780629058000,-300.0,0.00034952,2]
[424178015,1780629058000,-300.0,0.000356,10]
[424177998,1780629058000,-600.0,0.00035,120]
[424177989,1780629058000,-300.0,0.00034952,2]
[424177961,1780629058000,-302.14099729,0.00034952,2]
[424177965,1780629058000,-300.0,0.00034952,2]
[424177969,1780629058000,-1637.97013637,0.00034952,2]
[424177968,1780629058000,-300.0,0.00034952,2]
[424177970,1780629058000,-300.0,0.00034952,2]
[424177966,1780629058000,-300.0,0.00034952,2]
[424177971,1780629058000,-300.0,0.00034952,2]
[424177972,1780629058000,-595.52105001,0.00034952,2]
[424177973,1780629058000,-300.0,0.00034952,2]
[424177975,1780629058000,-512.60852236,0.00034952,2]
[424177978,1780629058000,-300.0,0.00034952,2]
[424177962,1780629058000,-866.62523856,0.00034952,2]
[424177977,1780629058000,-626.69317142,0.00034952,2]
[424177976,1780629058000,-300.0,0.00034952,2]
[424177985,1780629058000,-485.39259751,0.00034952,2]
[424177982,1780629058000,-300.0,0.00034952,2]
[424177974,1780629058000,-300.0,0.00034952,2]
[424177980,1780629058000,-300.0,0.00034952,2]
[424177988,1780629058000,-300.0,0.00034952,2]
[424177979,1780629058000,-453.07819494,0.00034952,2]
[424177984,1780629058000,-300.0,0.00034952,2]
[424177983,1780629058000,-301.57562639,0.00034952,2]
[424177981,1780629058000,-300.0,0.00034952,2]
[424177986,1780629058000,-310.66121846,0.00034952,2]
[424177999,1780629058000,-160.16,0.0003505,30]
[424178042,1780629059000,-419.0,0.00036663,2]
[424178055,1780629059000,-1250.74,0.00037118,2]
[424178044,1780629059000,-4955.99408775,0.000367,30]
[424178046,1780629059000,-4955.99408774,0.000367,30]
[424178048,1780629059000,-405.0,0.00037,2]
[424178050,1780629059000,-755.9513426,0.00037,10]
[424178045,1780629059000,-4955.99408774,0.000367,30]
[424178040,1780629059000,-1227.0,0.00036663,2]
[424178049,1780629059000,-160.0,0.00037,30]
[424178059,1780629059000,-214.02898804,0.000372,120]
[424178052,1780629059000,-1325.0,0.00037,2]
[424178057,1780629059000,-259.9625,0.00037169,13]
[424178058,1780629059000,-151.92,0.00037193,2]
[424178053,1780629059000,-5819.250981,0.0003705,2]
[424178056,1780629059000,-3000.0,0.00037169,30]
[424178063,1780629059000,-500.0,0.00037356,60]
[424178062,1780629059000,-500.0,0.00037356,60]
[424178060,1780629059000,-500.0,0.00037265,7]
[424178061,1780629059000,-83174.037,0.00037266,30]
[424178064,1780629059000,-700.0,0.00037356,60]
[424178041,1780629059000,-6072.0,0.00036663,2]
[424178054,1780629059000,-1228.5703,0.0003705,2]
[424178047,1780629059000,-160.16,0.000369,120]
[424178029,1780629059000,-2318.644,0.0003614,44]
[424178043,1780629059000,-200.0,0.00036686,3]
[424178023,1780629059000,-251.0,0.00035638,3]
[424178017,1780629059000,-240.68,0.00035616,30]
[424178026,1780629059000,-500.0,0.00035926,120]
[424178025,1780629059000,-150.0,0.00035899,2]
[424178024,1780629059000,-500.0,0.00035842,14]
[424178021,1780629059000,-151.0,0.00035616,5]
[424178019,1780629059000,-800.0,0.00035616,120]
[424178018,1780629059000,-800.0,0.00035616,120]
[424178022,1780629059000,-151.0,0.00035616,5]
[424178020,1780629059000,-800.0,0.00035616,120]
[424178051,1780629059000,-1331.0,0.00037,2]
[424178027,1780629059000,-160.16,0.0003597,98]
[424178028,1780629059000,-500.0,0.00036,2]
[424178038,1780629059000,-158.365315,0.00036532,13]
[424178034,1780629059000,-160.16,0.0003643,114]
[424178033,1780629059000,-51350.0,0.000364,30]
[424178032,1780629059000,-213.0,0.00036164,2]
[424178031,1780629059000,-849.0,0.00036164,2]
[424178035,1780629059000,-293.66731404,0.000365,30]
[424178037,1780629059000,-160.16,0.000365,16]
[424178036,1780629059000,-160.0,0.000365,16]
[424178039,1780629059000,-525.0,0.00036663,2]
[424178030,1780629059000,-151.0,0.00036153,30]
[424178065,1780629059000,-160.16,0.0003736,60]
[424178068,1780629059000,-159.20318346,0.00037562,30]
[424178076,1780629059000,-150.0,0.00037694,2]
[424178093,1780629059000,-530.19,0.00037699,120]
[424178092,1780629059000,-530.19,0.00037699,120]
[424178090,1780629059000,-500.0,0.00037699,120]
[424178098,1780629059000,-530.19,0.00037699,120]
[424178097,1780629059000,-530.19,0.00037699,120]
[424178094,1780629059000,-530.19,0.00037699,120]
[424178100,1780629059000,-530.19,0.00037699,120]
[424178095,1780629059000,-530.19,0.00037699,120]
[424178099,1780629059000,-530.19,0.00037699,120]
[424178096,1780629059000,-530.19,0.00037699,120]
[424178104,1780629059000,-500.0,0.00037699,7]
[424178110,1780629059000,-1151036.28016188,0.000377,2]
[424178107,1780629059000,-500.0,0.00037699,7]
[424178108,1780629059000,-500.0,0.00037699,7]
[424178109,1780629059000,-428.87,0.000377,2]
[424178106,1780629059000,-500.0,0.00037699,7]
[424178114,1780629059000,-4464.09678129,0.000377,2]
[424178113,1780629059000,-300.0,0.00034952,2]
[424178111,1780629059000,-1041.51341899,0.00011655,2]
[424178115,1780629059000,-420.65870459,0.000377,2]
[424178112,1780629059000,-3136.78478101,0.00011655,2]
[424178101,1780629059000,-500.0,0.00037699,120]
[424178103,1780629059000,-500.0,0.00037699,120]
[424178105,1780629059000,-500.0,0.00037699,7]
[424178091,1780629059000,-530.19,0.00037699,120]
[424178102,1780629059000,-500.0,0.00037699,120]
[424178067,1780629059000,-600.0,0.000375,120]
[424178072,1780629059000,-188.18181189,0.00037616,54]
[424178073,1780629059000,-404.30155312,0.00037616,2]
[424178074,1780629059000,-500.0,0.00037676,2]
[424178070,1780629059000,-51350.0,0.000376,30]
[424178075,1780629059000,-311.902471,0.0003768,60]
[424178071,1780629059000,-188.35452818,0.00037616,7]
[424178069,1780629059000,-350.43517463,0.000376,30]
[424178077,1780629059000,-500.0,0.00037699,120]
[424178080,1780629059000,-500.0,0.00037699,120]
[424178066,1780629059000,-160.24,0.000375,19]
[424178081,1780629059000,-500.0,0.00037699,120]
[424178088,1780629059000,-500.0,0.00037699,120]
[424178085,1780629059000,-500.0,0.00037699,30]
[424178084,1780629059000,-500.0,0.00037699,30]
[424178089,1780629059000,-500.0,0.00037699,120]
[424178087,1780629059000,-500.0,0.00037699,30]
[424178083,1780629059000,-500.0,0.00037699,120]
[424178078,1780629059000,-500.0,0.00037699,120]
[424178082,1780629059000,-500.0,0.00037699,120]
[424178079,1780629059000,-500.0,0.00037699,120]
[424178086,1780629059000,-500.0,0.00037699,30]
[424178119,1780629060000,-276.01074517,0.00027397,10]
[424178120,1780629060000,-301.64737162,0.00027397,10]
[424178117,1780629060000,-2147.13267544,0.00027397,10]
[424178118,1780629060000,-60.31752809,0.00027397,10]
[424178116,1780629060000,-505.0,0.00027137,2]
[424178125,1780629107000,-150.0,0.00011305,2]
[424178126,1780629132000,2000.0,0.00028251,120]
[424178128,1780629138000,1000.0,0.00024938,120]
[424178130,1780629161000,-344.0370481,0.00011518,2]
[424178131,1780629176000,-215.77576141,0.00011655,2]